Cogmind - Beta 14 @@@ ROGUE MODE // 2024.09.15 @ 03:57:21 Player: Zaros426 Result: Destroyed by Tracker with Immobilizer Performance ------------- Evolutions (6) 3000 Regions Visited (25) 5000 Robots Destroyed (395) 1975 Value Destroyed (16677) 16677 Prototype IDs (245) 4900 Alien Tech Used (1) 200 Bonus (13658) 13658 TOTAL SCORE: 45410 Bonus ------- High Alert Combat Kills 2050 Follower Combat Kills 2563 Entered Garrisons 800 Used RIF Installer 2000 Network Hubs Disabled 800 Aligned with FarCom 300 Met Data Miner 300 Used Data Conduit 3000 Built Enhanced Grunts 300 A7 Reached Mainframe 300 Met R17 at Cetus 500 Pursued by Intercept 1000 Friendly Fire -255 Cogmind --------- Core Integrity 0/1150 Matter 179/300 Energy 74/100 System Corruption 16% Temperature Cool (0) Movement Core (100) Ox1 Location -4/Factory Parts ------- > --- POWER (2) -------- (None) > --- PROPULSION (6) --- (None) > --- UTILITY (7) ------ Enhanced Optical Array 0b10 Decoder Chip [Scout] Core Analyzer Relay Coupler [NC] (31) > --- WEAPON (5) ------- Improved Remote Datajack > --- INVENTORY (5) ---- Huge Storage Unit Advanced Energy Well (348) High-capacity Matter Pod (40) Improved System Restoration Module Peak State ------------ > --- POWER ------------ Quantum Reactor Quantum Reactor > --- PROPULSION ------- Armored Medium Treads Armored Medium Treads Armored Medium Treads Armored Medium Treads Armored Medium Treads Armored Medium Treads > --- UTILITY ---------- Huge Storage Unit Enhanced Optical Array 0b10 Decoder Chip [Scout] Improved Target Analyzer Improved Kinecellerator Centrium Medium Armor Plating Centrium Medium Armor Plating > --- WEAPON ----------- Hypervelocity Coil Gun Hypervelocity Coil Gun Hypervelocity Coil Gun Advanced KE Penetrator Advanced KE Penetrator > --- INVENTORY -------- Improved Treads Centrium Heavy Treads Centrium Heavy Treads Centrium Heavy Treads Centrium Heavy Treads Advanced Heat Sink Improved Cooling System Advanced Energy Well High-capacity Matter Pod Layered Heavy Armor Plating Improved Thermal Defense Suite Relay Coupler [NC] Improved Dynamic Insulation System KE Penetrator Bore Cannon Bore Cannon Bore Cannon Tiamat Missile Launcher Improved Remote Datajack Improved Plasma Cutter [Rating: 143] Favorites ----------- Power Cooled Ion Engine Engine Cooled Ion Engine Power Core Neutrino Core Reactor Quantum Reactor Propulsion Improved Medium Treads Treads Improved Medium Treads Leg Flexi-carbon Leg Wheel Wheel Hover Unit Gravmag System Utility Advanced Targeting Computer Device Force Field Storage Huge Storage Unit Processor Advanced Targeting Computer Hackware Relay Coupler [NC] Protection Medium Armor Plating Weapon Gauss Cannon Energy Gun AWS/Thermal Energy Cannon Latent Energy Streamer Ballistic Gun Advanced KE Penetrator Ballistic Cannon Gauss Cannon Launcher Grenade Launcher Special Weapon Improved Remote Datajack Impact Weapon Maul Slashing Weapon Makeshift Sword Special Melee Weapon Improved Datajack Build | -11 -10 -10 -9 -9 -9 -8 -8 -8 -8 -8 -7 -7 -7 -7 -6 -6 -6 -6 -5 -5 -5 -5 -5 -5 -4 ------- Run | Yrd Mat Min Mat Min Exi Min Mat Gar Mat Gar Fac Gar Fac Gar Fac Low Low Dat Pro Fac Ext Cet Arc Hub Fac Slots Evolved 12 | . . . 2 . . . 2 . . . 2 . . . 2 . . . . 2 . . . . 2 Power 1 | . . . . . . . . . . . . . . . . . . . . . . . . . 1 Propulsion 4 | . . . . . . . 1 . . . 1 . . . 2 . . . . . . . . . . Utility 5 | . . . . . . . 1 . . . 1 . . . . . . . . 2 . . . . 1 Weapon 2 | . . . 2 . . . . . . . . . . . . . . . . . . . . . . Parts Attached 384 | 6 12 . 15 . 3 6 14 11 . 11 12 16 . 32 39 13 9 10 19 10 39 18 11 27 51 Power 21 | 1 1 . 1 . . 1 . . . . . 1 . 2 1 1 . . . 2 2 3 . 1 4 Engine 9 | 1 1 . 1 . . 1 . . . . . 1 . 1 1 1 . . . 1 . . . . . Core 5 | . . . . . . . . . . . . . . 1 . . . . . 1 2 . . . 1 Reactor 7 | . . . . . . . . . . . . . . . . . . . . . . 3 . 1 3 Propulsion 75 | 2 2 . . . . 2 1 . . 1 4 4 . 11 9 5 . . 5 3 6 8 . 6 6 Treads 63 | 2 2 . . . . 2 1 . . 1 4 4 . 6 9 5 . . . 1 6 8 . 6 6 Leg 8 | . . . . . . . . . . . . . . 2 . . . . 4 2 . . . . . Wheel 3 | . . . . . . . . . . . . . . 2 . . . . 1 . . . . . . Hover 1 | . . . . . . . . . . . . . . 1 . . . . . . . . . . . Flight . | . . . . . . . . . . . . . . . . . . . . . . . . . . Utility 116 | 1 2 . 4 . 1 1 4 . . 5 3 1 . 7 19 2 4 1 3 3 8 2 10 13 22 Device 73 | . 1 . . . . 1 1 . . 3 3 1 . 4 13 2 2 1 2 2 7 2 9 10 9 Storage 8 | 1 1 . 2 . . . 1 . . 1 . . . . 1 . . . . . . . . . 1 Processor 11 | . . . . . . . 1 . . 1 . . . 1 . . 1 . 1 1 1 . 1 . 3 Hackware 7 | . . . . . . . 1 . . . . . . 2 1 . . . . . . . . 2 1 Protection 17 | . . . 2 . 1 . . . . . . . . . 4 . 1 . . . . . . 1 8 Artifact . | . . . . . . . . . . . . . . . . . . . . . . . . . . Weapon 172 | 2 7 . 10 . 2 2 9 11 . 5 5 10 . 12 10 5 5 9 11 2 23 5 1 7 19 Energy Gun 9 | 1 1 . . . . . . . . . . 1 . . . 1 1 2 1 . 1 . . . . Energy Cannon 13 | . . . 2 . . . . . . . . . . 2 2 2 . 1 3 . 1 . . . . Ballistic Gun 53 | 1 . . 1 . . . 1 1 . . 1 1 . 4 3 1 1 1 5 1 12 4 1 3 11 Ballistic Cannon 61 | . 5 . 5 . 2 1 7 7 . 4 3 8 . 4 2 1 1 2 . . 4 . . 2 3 Launcher 10 | . 1 . 1 . . 1 . . . 1 . . . . . . 1 1 . 1 . . . . 3 Special Weapon 18 | . . . . . . . . 1 . . . . . 2 3 . . 1 1 . 5 1 . 2 2 Impact Weapon 4 | . . . 1 . . . 1 2 . . . . . . . . . . . . . . . . . Slashing Weapon 3 | . . . . . . . . . . . . . . . . . 1 1 1 . . . . . . Piercing Weapon . | . . . . . . . . . . . . . . . . . . . . . . . . . . Special Melee Weapon 1 | . . . . . . . . . . . 1 . . . . . . . . . . . . . . Unidentified Prototypes 2 | . 1 . . . . . . . . . . . . . . . 1 . . . . . . . . Corrupted Parts 7 | . . . . . . . . . . . . . . . . . . . 1 . . 6 . . . System Corruption 29 | . . . . . . . . . . . . . . . . . . . 1 . . 28 . . . Parts Lost 82 | . 1 . . . . 2 . . . . . 3 . 12 . 5 . 1 5 2 7 1 . 5 38 Power 11 | . . . . . . 1 . . . . . 1 . . . 1 . . 2 . . . . 1 5 Propulsion 26 | . . . . . . 1 . . . . . . . 5 . 3 . 1 2 1 2 1 . . 10 Utility 13 | . . . . . . . . . . . . . . 4 . . . . . . . . . . 9 Weapon 32 | . 1 . . . . . . . . . . 2 . 3 . 1 . . 1 1 5 . . 4 14 Highest Loss Streak 33 | . 1 . . . . 2 . . . . . 1 . 10 . 5 . 1 3 2 3 1 . 3 33 To Critical Strikes 7 | . . . . . . . . . . . . . . . . . . . 2 . 1 1 . . 3 Average Slot Usage (%) 94 | . 99 100 99 100 100 100 99 99 100 100 98 97 84 91 96 94 92 74 82 87 91 91 81 84 95 Engine 6 | . 14 14 11 11 11 11 9 9 9 9 7 7 7 7 6 5 6 6 4 . . . . . . Treads 26 | . 28 28 22 22 22 22 27 27 27 27 28 29 30 15 36 39 38 35 23 19 21 24 16 19 29 Leg 1 | . . . . . . . . . . . . . . 6 . . . . 3 9 3 . . . . Device 6 | . 13 14 . . . 4 8 9 9 8 7 6 7 4 6 13 11 6 5 6 5 5 4 3 7 Storage 7 | . 14 14 10 11 11 11 9 9 9 9 7 7 7 7 6 6 6 6 6 5 5 5 5 5 5 Processor 9 | . . . . . . . 8 9 9 9 15 15 15 14 6 6 6 12 12 15 21 22 22 20 14 Protection 1 | . . . 10 11 11 6 . . . . . . . . 1 . . . . . . . . . 7 Energy Cannon 1 | . . . 4 . . . . . . . . . . . 2 . . . 2 4 2 . . . . Ballistic Gun 7 | . 5 . 3 . . . . 3 9 9 6 6 . 9 1 1 2 . 10 16 21 26 27 23 20 Ballistic Cannon 18 | . 16 28 35 44 44 43 34 30 27 26 22 21 15 14 19 14 10 4 7 4 . . . 3 2 Peak Build Rating 143 | 6 12 12 24 22 25 26 40 39 39 48 64 64 53 53 82 84 90 99 84 104 115 140 141 141 143 Average Rating 63 | 5 8 12 21 22 23 24 34 38 38 43 61 61 52 47 68 81 85 66 75 91 103 112 139 134 131 On Entrance 57 | . 6 12 12 22 22 25 24 39 39 39 48 63 53 53 50 80 84 90 83 80 95 99 140 140 104 Naked Turns . | . . . . . . . . . . . . . . . . . . . . . . . . . . Heaviest Build 169 | 14 34 34 71 71 71 71 106 78 74 122 122 122 117 118 134 124 127 127 125 132 134 137 137 151 169 Greatest Support 240 | 40 46 46 46 46 46 46 69 69 69 69 112 112 96 96 180 180 180 180 150 165 174 240 240 240 188 Greatest Overweight (x) 11 | 2 . . 1 1 1 2 1 1 1 1 1 1 1 11 1 . . . 2 1 1 . . . 1 Average Overweight (x) . | . . . . 1 1 1 . . 1 1 1 . 1 3 . . . . . . . . . . . Largest Inventory Capacity 25 | 8 15 15 20 20 20 20 20 20 20 25 25 25 25 25 25 25 25 25 25 25 25 25 25 25 25 Average Capacity 22 | 7 10 15 19 20 20 20 20 20 20 23 25 25 25 25 25 25 25 25 25 25 25 25 25 25 24 Most Carried 25 | 3 15 15 20 20 20 20 20 20 20 25 25 25 25 25 25 25 25 25 25 25 25 25 25 25 25 Average Carried 21 | . 9 14 19 20 19 18 18 19 19 23 24 24 24 21 24 22 23 24 24 24 23 24 24 24 23 Final Capacity 25 | 8 15 15 20 20 20 20 20 20 20 25 25 25 25 25 25 25 25 25 25 25 25 25 25 25 5 Final Carried 25 | 3 15 15 20 20 20 17 20 20 20 25 25 25 25 25 25 24 25 23 24 24 25 25 24 25 4 Class Distribution -------------------- 36% | Gunner 16% | Scavenger-Gunner 14% | Skirmisher 10% | Tank 8% | Mutant 7% | Bothacker-Gunner Dominant Class ---------------- Mutant | -10/Materials Mutant | -10/Mines Tank | -9/Materials Tank | -9/Mines Tank | -9/Exiles Skirmisher | -8/Mines Skirmisher | -8/Materials Skirmisher | -8/Garrison Skirmisher | -8/Materials Skirmisher | -8/Garrison Gunner | -7/Factory Gunner | -7/Garrison Gunner | -7/Factory Bothacker-Gunner | -7/Garrison Gunner | -6/Factory Gunner | -6/Lower Caves Gunner | -6/Lower Caves Mutant | -6/Data Miner Gunner | -5/Proximity Caves Scavenger-Skirmisher | -5/Factory Scavenger-Gunner | -5/Extension Scavenger-Gunner | -5/Cetus Scavenger-Gunner | -5/Archives Scavenger-Gunner | -5/Hub_04(d) Scavenger-Gunner | -4/Factory Resources | -11 -10 -10 -9 -9 -9 -8 -8 -8 -8 -8 -7 -7 -7 -7 -6 -6 -6 -6 -5 -5 -5 -5 -5 -5 -4 ----------- Run | Yrd Mat Min Mat Min Exi Min Mat Gar Mat Gar Fac Gar Fac Gar Fac Low Low Dat Pro Fac Ext Cet Arc Hub Fac Matter Collected 17525 | 281 404 370 732 48 . 594 658 782 . 408 1793 502 247 761 2025 654 324 162 1267 223 1830 323 564 944 1629 Remotely . | . . . . . . . . . . . . . . . . . . . . . . . . . . Salvage Created 15294 | 148 678 231 801 29 . 581 1078 479 . 236 1745 529 49 361 1442 540 219 251 704 382 1432 . 445 1416 1518 Parts 767 | 7 40 13 53 5 . 35 54 12 . 18 90 29 2 14 48 9 20 1 29 20 69 . 38 76 85 Haulers Intercepted 8 | . . . 2 . . . 3 . . . 1 . . . . . . . . . . . . . 2 Recyclers Shooed 12 | . 1 . . . . . . . . . 1 . . . 4 . . . . 2 2 . . . 2 Parts Field Recycled . | . . . . . . . . . . . . . . . . . . . . . . . . . . Retrieved Matter . | . . . . . . . . . . . . . . . . . . . . . . . . . . Parts Self-Destructed 80 | . . . . . . . . . . . . . . . . 9 14 . 57 . . . . . . Prevented 5 | . . . . . . . . . . . . . . . . . . . 5 . . . . . . Kills | -11 -10 -10 -9 -9 -9 -8 -8 -8 -8 -8 -7 -7 -7 -7 -6 -6 -6 -6 -5 -5 -5 -5 -5 -5 -4 ------- Run | Yrd Mat Min Mat Min Exi Min Mat Gar Mat Gar Fac Gar Fac Gar Fac Low Low Dat Pro Fac Ext Cet Arc Hub Fac Combat Hostiles Destroyed 275 | . 18 3 17 3 . 16 16 9 . 13 25 12 1 11 23 13 10 4 12 10 20 . 1 16 22 Guns 87 | . 2 . 1 . . . 2 1 . 3 . 2 . . . 8 7 1 9 7 18 . 1 13 12 Cannons 158 | . 7 3 16 3 . 12 14 8 . 7 25 10 1 10 22 5 2 1 3 . 1 . . 3 5 AOE 27 | . 9 . . . . 4 . . . 3 . . . . 1 . 1 2 . 3 . . . . 4 Classes Destroyed 21 | 2 5 1 3 . . 2 1 . . 1 1 1 . . . 1 1 . 2 . . . . . . Worker 19 | . . 1 . . . . . . . . 1 . . . . . . . . 1 . . . 11 5 Builder 18 | . 1 2 . . . 1 2 . . . 6 . . . . . . . . . 1 . . 2 3 Tunneler 9 | 2 . . 1 . . 3 . . . . 2 . . . . . . . . . 1 . . . . Hauler 8 | . . . 2 . . . 3 . . . 1 . . . . . . . . . . . . . 2 Recycler 29 | 1 2 1 1 . . 2 5 . . . 8 . . . 5 . . . 1 1 1 . . 1 . Mechanic 3 | . . . . . . . 1 . . . . . . . 1 . . . 1 . . . . . . Operator 17 | . 2 . . . . . 1 . . . 1 . . . 2 . . . . . 1 . 9 1 . Drone 2 | . . . . . . . . . . . . . . . . . . . 2 . . . . . . Watcher 17 | . 3 . 2 . . . 2 . . . 2 . . . 2 . . . 1 . 2 . . 2 1 Swarmer 52 | . 3 . 1 3 . 7 3 4 . 4 1 . . . 3 . 7 . 3 5 4 . . . 4 Cutter 2 | . . . . . . . . . . 2 . . . . . . . . . . . . . . . Grunt 100 | . 15 3 6 . . 6 9 4 . 4 9 6 1 7 7 8 . . . 3 3 . . 7 2 Brawler 8 | . . . . . . 1 . . . 2 . . . . 1 2 . . 1 . . . . . 1 Duelist 9 | . . . 1 . . 1 . 1 . 1 1 1 . . 1 1 . . 1 . . . . . . Protector 2 | . . . . . . . . . . . . . . . . . . . 1 . . . . 1 . Sentry 48 | . . . 9 . . . 4 . . . 6 1 . 3 6 1 1 . 4 . 6 . 1 4 2 Specialist 1 | . . . . . . . . . . . . 1 . . . . . . . . . . . . . Hunter 16 | . . . . . . 1 . . . . 2 2 . . 1 . . . . . 2 . . . 8 Programmer 25 | . . . . . . . . . . . 6 1 . 1 4 . . . . 2 3 . . 3 5 Behemoth 4 | . . . . . . . . . . . . . . . . 1 . . . . 2 . . 1 . Enhanced Grunt 4 | . . . . . . . . . . . . . . . . . . 4 . . . . . . . Master Thief 2 | . . . . . . . . . . . . . . . . . 2 . . . . . . . . Best Kill Streak 15 | 1 6 3 2 3 . 6 7 4 . 4 10 4 1 5 3 3 4 4 3 8 5 . 2 6 15 Combat Bots Only 7 | . 5 2 2 3 . 6 3 4 . 4 3 4 1 5 3 3 4 4 3 6 4 . 1 4 7 Max Kills in Single Turn 7 | 1 3 1 2 1 . 2 2 1 . 2 7 2 1 1 2 1 2 1 1 2 2 . 1 3 4 Gunslinging 1 | . . . . . . . . . . . . . . . . . . . . . 1 . . . . Exploded 2 | . 2 . . . . 2 . . . 2 . . . . 1 . 1 1 . 2 . . . . 2 Melee . | . . . . . . . . . . . . . . . . . . . . . . . . . . Uniques/NPCs Destroyed . | . . . . . . . . . . . . . . . . . . . . . . . . . . Combat | -11 -10 -10 -9 -9 -9 -8 -8 -8 -8 -8 -7 -7 -7 -7 -6 -6 -6 -6 -5 -5 -5 -5 -5 -5 -4 -------- Run | Yrd Mat Min Mat Min Exi Min Mat Gar Mat Gar Fac Gar Fac Gar Fac Low Low Dat Pro Fac Ext Cet Arc Hub Fac Hostile Shots Fired 2159 | . 33 6 49 5 . 74 19 49 . 16 209 54 2 226 197 135 28 17 58 48 111 1 4 118 700 Missed 582 | . 7 2 9 1 . 18 5 17 . 8 91 17 2 51 61 37 10 7 16 14 25 1 . 14 169 Damage Taken 24939 | . 381 58 533 29 . 596 190 305 . 135 991 269 . 1963 1363 1363 108 411 1002 444 1750 128 79 3242 9599 Core 2221 | . 47 29 28 . . 110 14 79 . 15 67 7 . 168 49 63 13 44 108 81 87 . . 62 1150 Absorbed by Shields 2473 | . . . . . . . . 42 . 33 332 132 . 356 440 293 100 60 96 132 382 51 24 . . Reduced by Siege Mode 372 | . . . . . . . . . . . . . . . . . . . . 5 47 . 10 193 117 Ignored by Resistances 120 | . . . 23 . . . . . . 45 . . . . . . . . . . . . . . 52 Regen/Repaired (Parts) 1661 | . . . 302 . . . . . . . . . . . 422 581 . 153 203 . . . . . . Core Remaining (%) 74 | 100 . 69 . . . 65 . . . 80 . . . 65 . . . . 67 . . . . 77 . Volleys Fired 891 | 7 46 12 37 3 . 28 38 17 . 28 66 30 9 55 105 29 10 9 52 21 74 6 85 43 81 Largest 5 | 2 2 2 4 4 . 4 4 4 . 4 4 4 2 4 4 4 3 3 5 5 5 5 5 5 5 Hottest 222 | 60 70 70 168 156 . 156 192 192 . 178 178 178 120 156 182 209 137 161 222 161 217 171 173 195 215 Shots Fired 2466 | 14 88 24 138 12 . 102 146 56 . 73 225 82 12 97 230 138 48 39 130 56 242 21 93 179 221 Gun 1067 | 14 29 . 14 . . . 2 7 . 16 54 18 . 19 18 72 25 23 74 45 209 21 93 147 167 Cannon 1298 | . 42 24 123 12 . 99 144 49 . 53 171 64 12 76 202 66 22 10 30 6 15 . . 28 50 Launcher 39 | . 17 . 1 . . 3 . . . 4 . . . . . . 1 4 . 5 . . . . 4 Special 62 | . . . . . . . . . . . . . . 2 10 . . 2 26 . 18 . . 4 . Kinetic 2164 | 7 69 24 121 12 . 99 146 56 . 69 225 82 12 94 218 72 29 8 60 50 205 21 93 175 217 Thermal 166 | . . . . . . . . . . . . . . . . 65 18 23 43 1 16 . . . . Explosive 39 | . 17 . 1 . . 3 . . . 4 . . . . . . 1 4 . 5 . . . . 4 Electromagnetic 35 | 7 2 . 16 . . . . . . . . . . 1 2 1 . 2 1 . 3 . . . . Robot Hit Streak 64 | 4 6 10 12 3 . 6 12 5 . 9 18 13 1 14 17 19 9 14 17 14 64 5 33 22 11 Robot Miss Streak 8 | 2 5 3 6 1 . 4 6 5 . 8 4 3 2 2 4 5 3 1 4 5 5 4 3 2 5 Penetration Max 2 | . . . . . . . . . . . 1 1 . . . . . . . . 1 . 1 1 2 Secondary Targets 8 | . . . . . . . . . . . . . . . . . . . . 2 3 . . . 3 Max Gunslinging Chain 2 | . . . . . . . . . . . . . . . . . . . . 1 2 . . . 1 Autonomous 168 | . . . . . . . . . . . . . . . . 65 18 23 45 . 17 . . . . Shots Hit Robots 1482 | 8 37 14 60 4 . 47 75 38 . 32 125 39 2 61 149 113 29 32 106 32 186 11 81 105 96 Core Hits 745 | 4 37 8 30 3 . 28 41 16 . 21 62 22 1 22 53 33 16 22 46 26 83 4 33 66 68 Critical Kills 39 | . . . . . . . . . . . . . . . . . . . 1 . 9 . 8 7 14 Critical Parts Destroyed 68 | . . . . . . . . 4 . . 1 . . 2 4 . . . 1 . 10 1 15 9 21 Critical Strikes 172 | . 1 . 2 . . 1 5 5 . 1 11 1 . 10 23 2 1 2 5 . 25 1 23 16 37 Destroy 113 | . . . . . . . . . . . 1 . . 3 4 . . . 3 . 25 1 23 16 37 Blast 55 | . 1 . 2 . . 1 5 1 . 1 10 1 . 7 19 2 1 2 2 . . . . . . Smash 4 | . . . . . . . . 4 . . . . . . . . . . . . . . . . . Melee Attacks 65 | . . . . . . . 4 12 . . . . . . . . 48 1 . . . . . . . Impact 16 | . . . . . . . 4 12 . . . . . . . . . . . . . . . . . Slashing 49 | . . . . . . . . . . . . . . . . . 48 1 . . . . . . . Piercing . | . . . . . . . . . . . . . . . . . . . . . . . . . . Sneak Attacks 1 | . . . . . . . . . . . . . . . . . . 1 . . . . . . . Combat Hostiles . | . . . . . . . . . . . . . . . . . . . . . . . . . . Follow-up Attacks . | . . . . . . . . . . . . . . . . . . . . . . . . . . Damage Inflicted 43761 | 104 1580 241 1389 92 . 1399 1895 1430 . 1075 3976 1072 100 2155 4371 3262 889 1377 2285 1424 3829 229 876 4396 4315 Guns 16469 | 104 167 . 93 . . . 32 98 . 120 663 241 . 220 81 1883 506 460 1439 607 3276 229 876 3500 1874 Cannons 19495 | . 473 241 1240 92 . 1043 1863 609 . 760 2732 831 100 1747 3915 1343 356 109 586 35 334 . . 642 444 Explosions 6978 | . 940 . 56 . . 356 . . . 195 581 . . 102 375 36 27 798 260 782 219 . . 254 1997 Melee 733 | . . . . . . . . 723 . . . . . . . . . 10 . . . . . . . Ramming 86 | . . . . . . . . . . . . . . 86 . . . . . . . . . . . Kinetic 31536 | 52 624 241 1218 92 . 1043 1895 707 . 880 3395 1072 100 1967 3987 1492 368 109 1000 642 3087 229 876 4142 2318 Thermal 4658 | . . . 31 . . . . . . . . . . . . 1731 494 460 1248 186 508 . . . . Explosive 5220 | . 940 . 25 . . 356 . . . 195 581 . . . . . 27 530 . 596 . . . . 1970 Electromagnetic 1528 | 52 16 . 115 . . . . . . . . . . 102 384 39 . 268 37 . 234 . . 254 27 Impact 723 | . . . . . . . . 723 . . . . . . . . . . . . . . . . . Slashing 10 | . . . . . . . . . . . . . . . . . . 10 . . . . . . . Piercing . | . . . . . . . . . . . . . . . . . . . . . . . . . . Highest Corruption 35 | . 1 1 . . . 1 . . . . 1 2 2 17 9 11 11 17 20 1 7 35 35 29 16 Average Corruption 7 | . 1 1 . . . 1 . . . . 1 1 2 10 5 10 11 13 18 1 6 13 20 2 2 Corruption Purged 38 | . . . . . . . . . . . 1 . . . 2 . . . . . . . 35 . . Corruption Blocked . | . . . . . . . . . . . . . . . . . . . . . . . . . . Effects 524 | . 5 7 . . . 6 . . . . 13 8 11 63 67 58 57 16 104 . 36 19 34 6 14 Message Errors 122 | . 3 3 . . . 1 . . . . 3 3 1 16 14 10 15 2 25 . 8 4 7 2 5 Matter Fused 124 | . . 1 . . . 1 . . . . 2 . 4 13 12 19 16 2 32 . 9 5 5 2 1 Heat Flow Errors 67 | . . 1 . . . 2 . . . . 2 . 3 7 11 5 6 3 13 . 6 2 5 1 . Energy Discharges 60 | . . 1 . . . 1 . . . . 1 . 1 8 14 1 4 4 11 . 6 1 4 . 3 Parts Rejected 7 | . . . . . . . . . . . . . . . 2 . . . 1 . . 2 1 . 1 Parts Fused 5 | . . . . . . . . . . . 1 . . . 1 1 . . . . 2 . . . . Data Loss (minor) 69 | . 1 . . . . . . . . . 3 2 1 10 6 14 10 3 9 . . 4 3 1 2 Data Loss (major) 33 | . 1 1 . . . . . . . . 1 1 1 5 6 5 4 . 5 . 2 . 1 . . Misfires 12 | . . . . . . 1 . . . . . . . 1 1 1 2 . 2 . 1 1 . . 2 Alerts 7 | . . . . . . . . . . . . 1 . 2 . . . 1 2 . 1 . . . . Weapon Failures 18 | . . . . . . . . . . . . 1 . 1 . 2 . 1 4 . 1 . 8 . . Overload Shots . | . . . . . . . . . . . . . . . . . . . . . . . . . . Overflow Damage 1170 | . 54 . . . . 119 66 319 . 22 178 4 17 22 207 28 29 13 53 5 . . . 9 25 Projectiles 485 | . . . . . . 18 66 20 . 22 64 4 17 22 186 28 29 . . . . . . 9 . Explosions 386 | . 54 . . . . 101 . . . . 114 . . . 21 . . 13 53 5 . . . . 25 Melee 299 | . . . . . . . . 299 . . . . . . . . . . . . . . . . . Knockbacks 146 | . 2 4 3 . . 7 10 10 . 6 16 5 1 15 30 11 6 . 3 . 1 . . 6 10 Impact 1 | . . . . . . . . . . . . . . 1 . . . . . . . . . . . Kinetic 139 | . 2 4 2 . . 7 10 10 . 6 15 5 1 13 29 11 6 . 3 . 1 . . 5 9 Secondary 6 | . . . 1 . . . . . . . 1 . . 1 1 . . . . . . . . 1 1 Self-Inflicted Damage 429 | . 22 . . . . . . . . 22 . . . . . . . . 88 . . . . 248 49 Shots 10 | . 2 . . . . . . . . 2 . . . . . . . . 1 . . . . 3 2 Rammed . | . . . . . . . . . . . . . . . . . . . . . . . . . . Targets Rammed 33 | . . . . . . . . . . . . . . 33 . . . . . . . . . . . Kicked 33 | . . . . . . . . . . . . . . 33 . . . . . . . . . . . Crushed . | . . . . . . . . . . . . . . . . . . . . . . . . . . Highest Temperature 543 | . 72 136 319 248 . 543 94 117 . 287 305 352 185 354 329 308 280 242 247 63 520 122 276 435 229 Average Temperature 94 | . 18 32 94 124 . 148 16 47 . 96 105 128 83 147 97 96 70 78 106 20 101 48 90 88 85 Received Heat Transfer 4440 | . 156 36 246 . . 90 72 63 . 16 162 50 . 839 264 424 . . 86 63 177 4 14 627 1051 Effects 23 | . . . 1 . . 6 . . . . 4 . . 2 2 . . . 1 . 3 . . 1 3 Shutdowns 3 | . . . . . . . . . . . . . . . 1 . . . . . 1 . . 1 . Energy Bleed 5 | . . . 1 . . . . . . . . . . 1 . . . . 1 . 2 . . . . Interference 9 | . . . . . . 1 . . . . 4 . . . 1 . . . . . . . . . 3 Matter Decay 2 | . . . . . . 2 . . . . . . . . . . . . . . . . . . . Short Circuit 2 | . . . . . . 1 . . . . . . . 1 . . . . . . . . . . . Damage (major) 2 | . . . . . . 2 . . . . . . . . . . . . . . . . . . . Siege Activations 18 | . . . . . . . . . . . . . . . . . . . . 1 3 . 4 9 1 Total Turns 182 | . . . . . . . . . . . . . . . . . . . . 12 47 . 39 78 6 Longest Duration 36 | . . . . . . . . . . . . . . . . . . . . 12 36 . 16 21 6 Robots Corrupted 5 | . . . 1 . . . . 3 . . . . . 1 . . . . . . . . . . . Combat Hostiles 1 | . . . . . . . . . . . . . . 1 . . . . . . . . . . . Parts Fried 8 | . . . 2 . . . . 2 . . . . . 2 2 . . . . . . . . . . Impact Corruptions 7 | . . . . . . . . 7 . . . . . . . . . . . . . . . . . Robots Melted 1 | . . . . . . . . . . . . . . . . . . . . . 1 . . . . Combat Hostiles 1 | . . . . . . . . . . . . . . . . . . . . . 1 . . . . Parts Melted 10 | . . . 1 . . . . . . . . . . 2 . 2 1 . 1 . 3 . . . . Heat Transferred 5787 | . . . 50 . . . . . . . . . . . . 2183 629 851 1332 150 592 . . . . Parts Sabotaged . | . . . . . . . . . . . . . . . . . . . . . . . . . . Parts Stolen 3 | . . . . . . . . . . . . . . . . . 3 . . . . . . . . Parts Stripped . | . . . . . . . . . . . . . . . . . . . . . . . . . . Power Chain Reactions 1 | . . . 1 . . . . . . . . . . . . . . . . . . . . . . Latent Energy Used 1349 | . . . . . . . . . . . . . . 194 400 80 . 400 100 . 175 . . . . LE Corruption 24 | . . . . . . . . . . . . . . 3 6 2 . 6 2 . 5 . . . . Alert | -11 -10 -10 -9 -9 -9 -8 -8 -8 -8 -8 -7 -7 -7 -7 -6 -6 -6 -6 -5 -5 -5 -5 -5 -5 -4 ------- Run | Yrd Mat Min Mat Min Exi Min Mat Gar Mat Gar Fac Gar Fac Gar Fac Low Low Dat Pro Fac Ext Cet Arc Hub Fac Peak Influence 1453 | 15 410 164 394 198 . 219 351 669 325 718 950 1122 618 839 796 . . . . 297 378 558 379 1453 1190 Initial 697 | . 9 109 14 126 . . 1 230 325 211 376 665 588 308 440 . . . . 2 144 211 143 68 697 Average 378 | 7 268 69 247 158 . 65 213 469 325 454 515 944 532 541 468 . . . . 52 161 360 268 414 794 Maximum Alert Level 4 | . 2 . 1 . . 1 1 2 1 3 3 4 2 3 3 . . . . 1 1 2 1 4 4 Low Security (%) 27 | 100 8 100 33 100 . 84 39 . . . . . . . 3 . . . . 94 64 . 47 44 . Level 1 30 | . 87 . 66 . . 15 60 25 100 46 18 . . 8 38 . . . . 5 35 78 52 12 . Level 2 28 | . 3 . . . . . . 74 . 46 61 5 100 83 48 . . . . . . 21 . 19 21 Level 3 11 | . . . . . . . . . . 6 20 71 . 8 9 . . . . . . . . 21 73 Level 4 1 | . . . . . . . . . . . . 23 . . . . . . . . . . . 3 5 Level 5 . | . . . . . . . . . . . . . . . . . . . . . . . . . . High Security . | . . . . . . . . . . . . . . . . . . . . . . . . . . Max Security . | . . . . . . . . . . . . . . . . . . . . . . . . . . Squads Dispatched 64 | . 4 1 1 . . 1 7 . . . 11 . . . 13 . . . 3 2 3 1 . 7 10 Investigation 17 | . 2 1 . . . 1 1 . . . 2 . . . 3 . . . 3 . 1 1 . . 2 Extermination 12 | . . . . . . . . . . . 4 . . . 3 . . . . 1 . . . 2 2 Reinforcement 15 | . 2 . 1 . . . . . . . 1 . . . 4 . . . . 1 2 . . 2 2 Assault 5 | . . . . . . . . . . . 1 . . . 2 . . . . . . . . 1 1 Garrison 10 | . . . . . . . 6 . . . 3 . . . 1 . . . . . . . . . . Intercept 5 | . . . . . . . . . . . . . . . . . . . . . . . . 2 3 Searches Triggered . | . . . . . . . . . . . . . . . . . . . . . . . . . . Construction Impeded 6 | . . . . . . . . . . . . . . . 2 . . . . 1 1 . . . 2 Haulers Reinforced 4 | . . . . . . . . . . . 1 . . . 2 . . . . . . . . 1 . Active Scanning Responses . | . . . . . . . . . . . . . . . . . . . . . . . . . . Cargo Convoy Interrupts . | . . . . . . . . . . . . . . . . . . . . . . . . . . Stealth | -11 -10 -10 -9 -9 -9 -8 -8 -8 -8 -8 -7 -7 -7 -7 -6 -6 -6 -6 -5 -5 -5 -5 -5 -5 -4 --------- Run | Yrd Mat Min Mat Min Exi Min Mat Gar Mat Gar Fac Gar Fac Gar Fac Low Low Dat Pro Fac Ext Cet Arc Hub Fac Distress Signals 20 | . 2 . 5 . . . . . . . . . . . 4 . . . 1 . 2 2 . 2 2 Communications Jammed . | . . . . . . . . . . . . . . . . . . . . . . . . . . Distress Signals . | . . . . . . . . . . . . . . . . . . . . . . . . . . Times Spotted 477 | . 21 3 36 3 . 16 19 11 . 15 31 11 4 14 47 13 12 4 20 17 27 13 33 47 60 Peak Tracking Total 18 | . 4 2 10 3 . 4 3 5 . 5 5 4 2 6 7 4 5 4 4 7 4 5 2 8 18 Tactical Retreats 22 | . . . 1 . . . 3 2 . . 2 . . . 8 1 . . 1 1 1 . . 1 1 Traps | -11 -10 -10 -9 -9 -9 -8 -8 -8 -8 -8 -7 -7 -7 -7 -6 -6 -6 -6 -5 -5 -5 -5 -5 -5 -4 ------- Run | Yrd Mat Min Mat Min Exi Min Mat Gar Mat Gar Fac Gar Fac Gar Fac Low Low Dat Pro Fac Ext Cet Arc Hub Fac Traps Triggered 19 | . 2 . . . . . . 6 . 4 2 . . 2 1 . . . . . . . . 1 1 Indirectly 2 | . . . . . . . . . . . . . . . . . . . . . . . . 1 1 Trap Hack Attempts 65 | . . . . . . . . . . . 65 . . . . . . . . . . . . . . Triggered 1 | . . . . . . . . . . . 1 . . . . . . . . . . . . . . Disarmed 6 | . . . 6 . . . . . . . . . . . . . . . . . . . . . . Reprogrammed 1 | . . . . . . . . . . . 1 . . . . . . . . . . . . . . Reused 6 | . . . . . . . . . . . 1 . . . 5 . . . . . . . . . . Traps Extracted . | . . . . . . . . . . . . . . . . . . . . . . . . . . Installed 8 | . . . . . . . . . . . . . . . 6 2 . . . . . . . . . Triggered 6 | . . . . . . . . . . . 1 . . . 5 . . . . . . . . . . Most Traps Carried 6 | . . . . . . . . . . . . . . 6 6 . . . . . . . . . . Machines | -11 -10 -10 -9 -9 -9 -8 -8 -8 -8 -8 -7 -7 -7 -7 -6 -6 -6 -6 -5 -5 -5 -5 -5 -5 -4 ---------- Run | Yrd Mat Min Mat Min Exi Min Mat Gar Mat Gar Fac Gar Fac Gar Fac Low Low Dat Pro Fac Ext Cet Arc Hub Fac Machines Disabled 97 | . 4 . 4 . . . 2 3 . 4 14 3 . 7 3 . . . 1 7 5 1 2 29 8 Max in Single Turn 9 | . 2 . 2 . . . 1 1 . 2 2 1 . 1 1 . . . 1 6 1 1 1 9 2 Garrison Access 4 | . . . . . . . . . . . . . . . 1 . . . . 2 . . . . 1 Garrison Relay 8 | . . . . . . . . 2 . 2 . 2 . 2 . . . . . . . . . . . Phase Generator 1 | . . . . . . . . 1 . . . . . . . . . . . . . . . . . Network Hub 4 | . . . . . . . . . . . . . . . . . . . . . . . . 4 . Machines Repaired . | . . . . . . . . . . . . . . . . . . . . . . . . . . Machines Dismantled 4 | . . . . . . . . 1 . . . . . . . . . . . . 2 1 . . . Machines Sabotaged . | . . . . . . . . . . . . . . . . . . . . . . . . . . Overloaded Fab Kills . | . . . . . . . . . . . . . . . . . . . . . . . . . . Hacking | -11 -10 -10 -9 -9 -9 -8 -8 -8 -8 -8 -7 -7 -7 -7 -6 -6 -6 -6 -5 -5 -5 -5 -5 -5 -4 --------- Run | Yrd Mat Min Mat Min Exi Min Mat Gar Mat Gar Fac Gar Fac Gar Fac Low Low Dat Pro Fac Ext Cet Arc Hub Fac Machines Accessed 102 | . 8 2 11 1 1 1 10 2 2 3 7 1 4 1 11 1 . 4 3 4 10 3 . 7 5 Terminals 70 | . 6 1 9 1 . 1 9 2 1 3 5 1 1 1 5 . . . 1 1 10 3 . 7 2 Fabricators 6 | . . . . . . . . . . . . . 1 . 2 . . . 1 1 . . . . 1 Repair Stations 2 | . . . 1 . . . . . . . . . . . 1 . . . . . . . . . . Recycling Units 6 | . 2 . . . . . . . . . 1 . . . 2 . . . 1 . . . . . . Scanalyzers 3 | . . . 1 . . . . . . . . . 1 . . . . . . . . . . . 1 Garrison Access 8 | . . . . . . . 1 . 1 . 1 . 1 . 1 . . . . 2 . . . . 1 Total Hacks 320 | . 26 6 46 2 1 5 35 3 2 5 17 1 26 2 26 1 . 33 6 10 24 9 . 15 19 Successful 176 | . 14 2 25 1 1 2 16 1 1 2 9 1 20 1 15 1 . 33 3 6 8 2 . 3 9 Failed 142 | . 12 4 20 1 . 3 18 2 1 3 8 . 6 1 11 . . . 3 4 16 7 . 12 10 Catastrophic 22 | . 2 . . . . 2 3 1 1 . 3 . 1 . 2 . . . . . 1 2 . 2 2 Database Lockouts 2 | . . . 1 . . . 1 . . . . . . . . . . . . . . . . . . Manual 94 | . 23 2 15 . 1 5 20 . . . 9 . 2 . 7 . . . 1 . 1 1 . 4 3 Terminals 211 | . 23 5 39 2 . 5 34 3 1 5 15 1 2 2 13 . . . 1 3 24 9 . 15 9 Fabricators 17 | . . . . . . . . . . . . . 1 . 5 . . . 4 3 . . . . 4 Repair Stations 8 | . . . 5 . . . . . . . . . . . 3 . . . . . . . . . . Recycling Units 8 | . 3 . . . . . . . . . 1 . . . 3 . . . 1 . . . . . . Scanalyzers 27 | . . . 2 . . . . . . . . . 21 . . . . . . . . . . . 4 Garrison Access 13 | . . . . . . . 1 . 1 . 1 . 2 . 2 . . . . 4 . . . . 2 Terminal Hacks 104 | . 7 2 16 1 1 2 9 1 . 2 3 1 . 1 6 1 . 33 1 1 8 2 . 3 3 Record 19 | . . . . 1 . . . . . . . . . . 2 . . 11 . 1 1 2 . . 1 Part Schematic 12 | . . . . . . . . . . . . . . . . . . 12 . . . . . . . Robot Schematic 7 | . . . . . . . . . . . . . . . . . . 7 . . . . . . . Robot Analysis 6 | . 3 . 1 . . 2 . . . . . . . . . . . . . . . . . . . Prototype ID Bank 12 | . 2 . 2 . . . 2 . . . 1 . . . . . . 3 . . 2 . . . . Open Door 6 | . . 1 . . . . . . . . . . . . . 1 . . 1 . 3 . . . . Level Access Points 1 | . . . . . . . . . . . . . . . 1 . . . . . . . . . . Emergency Access Points 4 | . . . . . . . . 1 . 1 . . . 1 1 . . . . . . . . . . Terminal Index 2 | . . . 1 . . . 1 . . . . . . . . . . . . . . . . . . Alert Level 1 | . . . 1 . . . . . . . . . . . . . . . . . . . . . . Unreport Threat 1 | . . . . . . . . . . . . . . . . . . . . . . . . 1 . Locate Traps 10 | . 1 . 2 . . . 1 . . . 1 . . . 1 . . . . . 2 . . 1 1 Disarm Traps 1 | . . . 1 . . . . . . . . . . . . . . . . . . . . . . Dispatch Records 2 | . . . 2 . . . . . . . . . . . . . . . . . . . . . . Maintenance Status 1 | . . . 1 . . . . . . . . . . . . . . . . . . . . . . Surveillance Status 2 | . . . 1 . . . 1 . . . . . . . . . . . . . . . . . . Patrol Status 1 | . . . . . . . . . . . . . . . . . . . . . . . . 1 . Investigation Status 1 | . . . 1 . . . . . . . . . . . . . . . . . . . . . . Reinforcement Status 1 | . . . . . . . 1 . . . . . . . . . . . . . . . . . . Hauler Manifests 2 | . . . 2 . . . . . . . . . . . . . . . . . . . . . . Registered Prototypes 1 | . . . . . . . 1 . . . . . . . . . . . . . . . . . . Zone Layout 8 | . 1 1 1 . . . 2 . . . 1 . . . 1 . . . . . . . . . 1 Garrison Registry 2 | . . . . . . . . . . 1 . 1 . . . . . . . . . . . . . Derelict Proto ID Bank 1 | . . . . . 1 . . . . . . . . . . . . . . . . . . . . Fabricator Hacks 8 | . . . . . . . . . . . . . 1 . 3 . . . 1 1 . . . . 2 Network Status 4 | . . . . . . . . . . . . . 1 . 2 . . . 1 . . . . . . Load Schematic 2 | . . . . . . . . . . . . . . . 1 . . . . . . . . . 1 Build 2 | . . . . . . . . . . . . . . . . . . . . 1 . . . . 1 Repair Station Hacks 4 | . . . 2 . . . . . . . . . . . 2 . . . . . . . . . . Scan Component 2 | . . . 1 . . . . . . . . . . . 1 . . . . . . . . . . Repair 2 | . . . 1 . . . . . . . . . . . 1 . . . . . . . . . . Recycling Unit Hacks . | . . . . . . . . . . . . . . . . . . . . . . . . . . Scanalyzer 20 | . . . 2 . . . . . . . . . 16 . . . . . . . . . . . 2 Insert Component 9 | . . . 1 . . . . . . . . . 7 . . . . . . . . . . . 1 Analyze 11 | . . . 1 . . . . . . . . . 9 . . . . . . . . . . . 1 Garrison Access Hacks 13 | . . . . . . . 1 . 1 . 1 . 2 . 2 . . . . 4 . . . . 2 Unlock Access 4 | . . . . . . . 1 . 1 . 1 . 1 . . . . . . . . . . . . Seal Access 4 | . . . . . . . . . . . . . . . 1 . . . . 2 . . . . 1 Coupler Status 5 | . . . . . . . . . . . . . 1 . 1 . . . . 2 . . . . 1 Unauthorized Hacks 27 | . 7 . 5 . . . 6 . . . 5 . 1 . 2 . . . 1 . . . . . . Terminals 23 | . 6 . 5 . . . 6 . . . 4 . 1 . 1 . . . . . . . . . . Track 1 | . 1 . . . . . . . . . . . . . . . . . . . . . . . . Botnet 1 | . . . . . . . . . . . 1 . . . . . . . . . . . . . . Skim 21 | . 5 . 5 . . . 6 . . . 3 . 1 . 1 . . . . . . . . . . Fabricators . | . . . . . . . . . . . . . . . . . . . . . . . . . . Repair Stations . | . . . . . . . . . . . . . . . . . . . . . . . . . . Recycling Units 4 | . 1 . . . . . . . . . 1 . . . 1 . . . 1 . . . . . . Tunnel 4 | . 1 . . . . . . . . . 1 . . . 1 . . . 1 . . . . . . Scanalyzers . | . . . . . . . . . . . . . . . . . . . . . . . . . . Garrison Access . | . . . . . . . . . . . . . . . . . . . . . . . . . . Data Cores Recovered 2 | . . . . . . . 1 . . . . . . . 1 . . . . . . . . . . Used 2 | . . . . . . . 1 . . . . . . . 1 . . . . . . . . . . Hacking Detections 80 | . 7 1 10 1 . 1 9 2 1 2 5 1 4 1 8 . . . 2 4 8 3 . 6 4 Full Trace Events 10 | . 1 . . . . 1 2 . . . 1 . . . 1 . . . 1 . 1 1 . . 1 Feedback Events 1 | . . . . . . 1 . . . . . . . . . . . . . . . . . . . Corruption 1 | . . . . . . 1 . . . . . . . . . . . . . . . . . . . Feedback Blocked . | . . . . . . . . . . . . . . . . . . . . . . . . . . Robot Schematics Acquired 7 | . . . . . . . . . . . . . . . . . . 7 . . . . . . . Robots Built . | . . . . . . . . . . . . . . . . . . . . . . . . . . Authchips . | . . . . . . . . . . . . . . . . . . . . . . . . . . Time . | . . . . . . . . . . . . . . . . . . . . . . . . . . Total Robot Build Rating . | . . . . . . . . . . . . . . . . . . . . . . . . . . Part Schematics Acquired 20 | . . . 1 . . . . . . . . . 6 . . . . 12 . . . . . . 1 Parts Built 3 | . . . . . . . . . . . . . . . . . . . . 1 . . . . 2 Authchips . | . . . . . . . . . . . . . . . . . . . . . . . . . . Time 245 | . . . . . . . . . . . . . . . . . . . . 139 . . . . 106 Total Part Build Rating 21 | . . . . . . . . . . . . . . . . . . . . 9 . . . . 12 Parts Repaired 2 | . . . 1 . . . . . . . . . . . 1 . . . . . . . . . . Time 70 | . . . 26 . . . . . . . . . . . 44 . . . . . . . . . . Parts Recycled . | . . . . . . . . . . . . . . . . . . . . . . . . . . Recycled Matter . | . . . . . . . . . . . . . . . . . . . . . . . . . . Retrieved Matter . | . . . . . . . . . . . . . . . . . . . . . . . . . . Retrieved Components . | . . . . . . . . . . . . . . . . . . . . . . . . . . Parts Scanalyzed 9 | . . . 1 . . . . . . . . . 7 . . . . . . . . . . . 1 Part Schematics Acquired 8 | . . . 1 . . . . . . . . . 6 . . . . . . . . . . . 1 Parts Damaged . | . . . . . . . . . . . . . . . . . . . . . . . . . . Bothacking | -11 -10 -10 -9 -9 -9 -8 -8 -8 -8 -8 -7 -7 -7 -7 -6 -6 -6 -6 -5 -5 -5 -5 -5 -5 -4 ------------ Run | Yrd Mat Min Mat Min Exi Min Mat Gar Mat Gar Fac Gar Fac Gar Fac Low Low Dat Pro Fac Ext Cet Arc Hub Fac Used RIF Installer 4 | . . . . . . . . 1 . 1 . 1 . 1 . . . . . . . . . . . Command Fork 1 | . . . . . . . . . . 1 . . . . . . . . . . . . . . . Threat Obfuscator 1 | . . . . . . . . . . . . . . 1 . . . . . . . . . . . Autooverride 1 | . . . . . . . . . . . . 1 . . . . . . . . . . . . . Robots Hacked 10 | . . . . . . . . . . . . . . 2 6 . . 1 . . . . . 1 . Non-combat 5 | . . . . . . . . . . . . . . . 5 . . . . . . . . . . Combat 5 | . . . . . . . . . . . . . . 2 1 . . 1 . . . . . 1 . Robot Hacks Applied 11 | . . . . . . . . . . . . . . 2 6 . . 1 . . . . . 2 . parse_system 3 | . . . . . . . . . . . . . . . 1 . . 1 . . . . . 1 . drop_inventory 2 | . . . . . . . . . . . . . . . 2 . . . . . . . . . . formatsys_low 3 | . . . . . . . . . . . . . . . 3 . . . . . . . . . . formatsys_high 3 | . . . . . . . . . . . . . . 2 . . . . . . . . . 1 . Relay Couplers Released 31 | . . . . . . . . 7 . 8 . 7 . 6 . . . . . 3 . . . . . Machine Destruction 31 | . . . . . . . . 7 . 8 . 7 . 6 . . . . . 3 . . . . . Attached 5 | . . . . . . . . . . . . . . 2 1 . . . . . . . . 1 1 Fabnet Peak Effective % . | . . . . . . . . . . . . . . . . . . . . . . . . . . Robots Rewired 18 | . . . . . . . . . . . . . . . . . . . 11 . 7 . . . . Allies Hacked 2 | . . . . . . . . . . . . . . . 1 . . . . . 1 . . . . Hacks Repelled . | . . . . . . . . . . . . . . . . . . . . . . . . . . Allies | -11 -10 -10 -9 -9 -9 -8 -8 -8 -8 -8 -7 -7 -7 -7 -6 -6 -6 -6 -5 -5 -5 -5 -5 -5 -4 -------- Run | Yrd Mat Min Mat Min Exi Min Mat Gar Mat Gar Fac Gar Fac Gar Fac Low Low Dat Pro Fac Ext Cet Arc Hub Fac Total Allies 41 | . . 3 . . . . . . . . . . . 3 6 . . . 11 . 12 5 . 1 . Largest Group 11 | . . 3 3 . . . . . . . . . . 3 3 1 1 1 11 4 9 11 9 7 . Highest-Rated Group 813 | . . 40 40 . . . . . . . . . . 45 93 23 20 20 266 81 430 813 662 586 . Highest-Rated Ally 159 | . . 16 16 . . . . . . . . . . 16 31 23 20 20 43 30 159 159 135 137 . Total Orders 20 | . . . . . . . . . . . . . . . 2 8 2 2 2 . . . 2 2 . STAY 8 | . . . . . . . . . . . . . . . . 4 1 1 . . . . 1 1 . FOLLOW 4 | . . . . . . . . . . . . . . . . 1 1 . . . . . 1 1 . AID 8 | . . . . . . . . . . . . . . . 2 3 . 1 2 . . . . . . Ally Attacks 422 | . . . 52 . . . . . . . . . . 10 51 . 5 . 53 13 73 63 26 76 . Total Damage 9533 | . . . 533 . . . . . . . . . . 108 1604 . 171 . 1130 120 1159 1419 592 2697 . Kills 75 | . . . 9 . . . . . . . . . . 1 9 . 3 . 6 1 7 17 4 18 . Allies Corrupted 1 | . . . . . . . . . . . . . . . . . . . . . . . . 1 . Allies Melted . | . . . . . . . . . . . . . . . . . . . . . . . . . . Turrets Deployed 3 | . . . . . . . . . . . . . . . 1 . 1 . 1 . . . . . . Intel | -11 -10 -10 -9 -9 -9 -8 -8 -8 -8 -8 -7 -7 -7 -7 -6 -6 -6 -6 -5 -5 -5 -5 -5 -5 -4 ------- Run | Yrd Mat Min Mat Min Exi Min Mat Gar Mat Gar Fac Gar Fac Gar Fac Low Low Dat Pro Fac Ext Cet Arc Hub Fac Robot Analysis Total 151 | . 3 . 1 . . 2 . . . . . . . . . . . 145 . . . . . . . Derelict Logs Recovered 7 | . . 1 . 1 . . . . . . . . . . . 1 2 . 2 . . . . . . Drone Launches . | . . . . . . . . . . . . . . . . . . . . . . . . . . Drone Recoveries . | . . . . . . . . . . . . . . . . . . . . . . . . . . Decoded 0b10 Intel 74 | . . . . . . . . . . . . . . . . . . . . 6 13 1 2 30 22 Traps 37 | . . . . . . . . . . . . . . . . . . . . . 11 . . 12 14 Emergency Access 31 | . . . . . . . . . . . . . . . . . . . . 5 1 . . 18 7 Exits 6 | . . . . . . . . . . . . . . . . . . . . 1 1 1 2 . 1 Exploration | -11 -10 -10 -9 -9 -9 -8 -8 -8 -8 -8 -7 -7 -7 -7 -6 -6 -6 -6 -5 -5 -5 -5 -5 -5 -4 ------------- Run | Yrd Mat Min Mat Min Exi Min Mat Gar Mat Gar Fac Gar Fac Gar Fac Low Low Dat Pro Fac Ext Cet Arc Hub Fac Turns Passed 32666 | 186 1583 705 2339 465 596 1872 1039 859 52 807 2961 952 677 1806 3268 1647 1586 500 2473 930 1451 537 714 1445 1216 Spaces Moved 13578 | 103 845 395 857 190 244 694 381 283 22 286 1028 332 258 446 1453 891 891 266 1049 395 618 253 256 723 419 Core 27 | 21 . . . . . . . . . . . . . . . . . . . . . . . . 6 Treads 13059 | 82 845 395 857 190 244 694 381 283 22 286 1028 332 258 302 1453 891 891 266 862 234 618 253 256 723 413 Legs 414 | . . . . . . . . . . . . . . 66 . . . . 187 161 . . . . . Wheels 78 | . . . . . . . . . . . . . . 78 . . . . . . . . . . . Hover . | . . . . . . . . . . . . . . . . . . . . . . . . . . Flight . | . . . . . . . . . . . . . . . . . . . . . . . . . . Fastest Speed 50 | 50 160 160 160 240 240 240 160 160 240 240 240 160 240 235 160 160 160 160 160 155 155 157 160 160 50 Average Speed 197 | 149 160 160 237 240 240 240 194 238 240 240 240 235 240 314 178 160 160 160 203 169 156 159 160 162 203 Slowest Speed 545 | 160 160 160 240 240 240 320 240 240 240 240 240 240 240 545 240 160 160 160 260 190 235 160 160 170 250 Overloaded Moves . | . . . . . . . . . . . . . . . . . . . . . . . . . . Propulsion Burnouts . | . . . . . . . . . . . . . . . . . . . . . . . . . . Robots Hopped . | . . . . . . . . . . . . . . . . . . . . . . . . . . Cave-ins Triggered 1 | . . . . . . . . . . . . . . 1 . . . . . . . . . . . Exploration Rate (%) 53 | 6 97 59 72 51 61 87 35 43 3 51 26 48 6 38 30 72 80 83 90 10 89 86 89 68 12 Regions Visited 25 Branch Regions 12 Pre-discovered Areas 30 | . 2 1 2 1 . . . . . . 1 . . . 1 . . 22 . . . . . . . Known Exits Taken 11 | . . 1 1 . . 1 1 . 1 . 1 . 1 . . . . . 1 1 . . 1 1 . Unknown Exits Taken 10 | 1 1 . . 1 1 . . . . . . . . . 1 1 1 1 . . 1 1 . . . Scrap Searched 5 | . . 1 . . . 1 . . . . . . . . . 1 . . 2 . . . . . . Spaces Dug 158 | . . . . . . . 12 . . . 7 . 7 24 12 . 48 . . 4 . . . 1 43 Terrain Destroyed 1310 | . 109 . 12 3 . 33 37 . . 21 76 5 10 35 76 24 59 35 8 80 13 3 4 511 156 Melee 52 | . . . . . . . 4 . . . . . . . . . 48 . . . . . . . . Projectile 360 | . . . . 3 . 9 33 . . 4 50 5 10 11 63 24 7 1 8 4 7 3 4 44 70 AOE 887 | . 109 . 12 . . 24 . . . 17 26 . . 24 13 . 4 34 . 76 . . . 467 81 Terrain Rammed . | . . . . . . . . . . . . . . . . . . . . . . . . . . Walls Destroyed . | . . . . . . . . . . . . . . . . . . . . . . . . . . Machines Disabled . | . . . . . . . . . . . . . . . . . . . . . . . . . . Actions | -11 -10 -10 -9 -9 -9 -8 -8 -8 -8 -8 -7 -7 -7 -7 -6 -6 -6 -6 -5 -5 -5 -5 -5 -5 -4 --------- Run | Yrd Mat Min Mat Min Exi Min Mat Gar Mat Gar Fac Gar Fac Gar Fac Low Low Dat Pro Fac Ext Cet Arc Hub Fac Total 17594 | 118 991 447 1079 192 257 833 577 383 23 359 1397 455 298 631 1948 1048 981 330 1333 622 944 369 466 890 623 Wait 2059 | . 58 31 116 . . 105 124 41 . 16 205 54 27 23 305 107 6 25 188 172 169 49 111 77 50 Move 13554 | 102 844 394 856 189 243 693 381 282 21 285 1027 331 258 444 1452 890 890 265 1048 394 617 252 255 722 419 Hop . | . . . . . . . . . . . . . . . . . . . . . . . . . . Pick Up 223 | 3 19 5 35 . 5 . 7 1 1 9 9 8 2 17 13 4 8 8 11 12 14 13 . 8 11 Fast Attach 122 | 6 2 . 5 . . . 7 1 . 1 6 8 . 17 11 4 6 1 8 3 7 6 9 5 9 Attach 99 | . 3 . 1 . . 2 1 . . . 1 5 . 10 2 5 1 6 8 5 7 5 2 6 29 Detach 19 | . . . . . . . . . . . . 2 . . 1 1 . 2 3 . 2 1 1 2 4 Swap 164 | . 7 . 9 . 3 4 6 10 . 10 5 3 . 5 26 4 3 3 3 2 25 7 . 16 13 Drop 236 | . 12 5 20 . 6 1 9 1 1 4 13 14 2 20 27 2 9 10 12 13 13 21 3 11 7 Fire 891 | 7 46 12 37 3 . 28 38 17 . 28 66 30 9 55 105 29 10 9 52 21 74 6 85 43 81 Melee 65 | . . . . . . . 4 12 . . . . . . . . 48 1 . . . . . . . Ram . | . . . . . . . . . . . . . . . . . . . . . . . . . . Kick 33 | . . . . . . . . . . . . . . 33 . . . . . . . . . . . Crush . | . . . . . . . . . . . . . . . . . . . . . . . . . . Escape Stasis 18 | . . . . . . . . 8 . 6 . . . 4 . . . . . . . . . . . Rewire 3 | . . . . . . . . . . . . . . 3 . . . . . . . . . . . Trap 73 | . . . . . . . . . . . 65 . . . 6 2 . . . . . . . . . Miscellaneous 35 | . . . . . . . . 10 . . . . . . . . . . . . 16 9 . . . Route ------- -11/Scrapyard -10/Materials (discovered 5 exits: *Mat x3 / *Min / [*Sub]) -10/Mines -9/Materials (discovered 7 exits: *Mat x3 / *Min x2 / *Sto x2) -9/Mines (discovered 2 exits: *Exi / [*Zio]) -9/Exiles -8/Mines -8/Materials (discovered 2 exits: *Fac / Gar) -8/Garrison -8/Materials -8/Garrison (discovered 4 exits: *Fac x3 / [Mat]) -7/Factory (discovered 2 exits: [*Low] / Gar) -7/Garrison (discovered 3 exits: *Fac x3) -7/Factory -7/Garrison -6/Factory (discovered 6 exits: Fac x4 / *Low x2) -6/Lower Caves -6/Lower Caves (discovered 2 exits: *Fac / *Dat) -6/Data Miner -5/Proximity Caves -5/Factory -5/Extension (discovered 3 exits: *Fac x2 / *Cet) -5/Cetus (discovered 2 exits: *Fac / *Arc) -5/Archives (discovered 3 exits: *Fac / *Hub x2) -5/Hub_04(d) (discovered 3 exits: *Fac x3) -4/Factory (discovered 1 exit: *Res) History --------- Turn | Location | Event 2 | -11/Scrapyard | Discovered new exit (range 16) 187 | -11/Scrapyard | Entered Materials 311 | -10/Materials | Build established: Mutant 386 | -10/Materials | Discovered new exit (range 16) 687 | -10/Materials | Discovered new exit (range 7) 813 | -10/Materials | Discovered new exit (range 5) 961 | -10/Materials | Discovered new exit (range 16) 1078 | -10/Materials | Identified exit to Materials 1142 | -10/Materials | Learned location of 1 exit from Storage 1144 | -10/Materials | Learned 2 Storage zone layouts 1156 | -10/Materials | Learned location of 2 exits from Subcaves 1770 | -10/Materials | Entered Mines 1771 | -10/Mines | Learned location of Storage (-9) 1821 | -10/Mines | Received a Rocket Launcher from a helpful Derelict 1974 | -10/Mines | Discovered exit to Materials (range 8) 2385 | -10/Mines | Assisted by bots powering up and referring to "LRC-V3" 2427 | -10/Mines | Met a Derelict shopkeep closing up shop 2475 | -10/Mines | Entered Materials 2475 | -9/Materials | Accompanied by 3 allies 2475 | -9/Materials | Evolved 2 slots: Weapon x2 2885 | -9/Materials | Build established: Tank 2926 | -9/Materials | Discovered new exit (range 13) 3093 | -9/Materials | Discovered new exit (range 14) 3098 | -9/Materials | Discovered new exit (range 10) 3772 | -9/Materials | Central database locked down 3825 | -9/Materials | Learned location of Zion (-7) 3868 | -9/Materials | Identified exit to Materials 3901 | -9/Materials | Identified exit to Storage 3901 | -9/Materials | Identified exit to Mines 3937 | -9/Materials | Learned 2 Storage zone layouts 4532 | -9/Materials | Repaired Hcp. Storage Unit 4814 | -9/Materials | Entered Mines 4956 | -9/Mines | A Derelict revealed a hidden shortcut to a safe place 5199 | -9/Mines | Discovered new exit (range 9) 5257 | -9/Mines | Deemed a non-threat by the Exiles lab entrance 5279 | -9/Mines | Entered Exiles 5342 | -9/Exiles | Met 8R-AWN 5380 | -9/Exiles | Met EX-HEX 5447 | -9/Exiles | Met EX-BIN 5483 | -9/Exiles | Aligned with FarCom system 5486 | -9/Exiles | Given EX-Vault access code 5541 | -9/Exiles | Opened EX-Vault 5556 | -9/Exiles | Found Latent Energy Streamer 5560 | -9/Exiles | Found AWS/Thermal 5577 | -9/Exiles | Found Deploy-a-Sentry 5580 | -9/Exiles | Found Deploy-a-Sentry 5584 | -9/Exiles | Found Deploy-a-Sentry 5635 | -9/Exiles | Warned to stay clear of 0b10 Research branches 5702 | -9/Exiles | Met EX-DEC 5851 | -9/Exiles | Discovered new exit (range 10) 5875 | -9/Exiles | Stole three prototypes: AWS/Thermal, Latent Energy Streamer, Deploy-a-Sentry 5875 | -9/Exiles | Entered Mines 6177 | -8/Mines | Build established: Skirmisher 7134 | -8/Mines | Discovered exit to Materials (range 7) 7747 | -8/Mines | Entered Materials 7747 | -8/Materials | Evolved 2 slots: Propulsion x1, Utility x1 7881 | -8/Materials | Central database locked down 8145 | -8/Materials | Garrison activated, responded to threat 8435 | -8/Materials | Discovered new exit (range 4) 8552 | -8/Materials | Garrison activated, responded to threat 8786 | -8/Materials | Identified exit to Garrison 8786 | -8/Materials | Entered Garrison 8822 | -8/Garrison | Triggered checkpoint 8897 | -8/Garrison | Garrison Relay disabled 9104 | -8/Garrison | Phase Generator disabled 9304 | -8/Garrison | Triggered checkpoint 9498 | -8/Garrison | Triggered checkpoint 9530 | -8/Garrison | Garrison Relay disabled 9592 | -8/Garrison | Discovered new exit (range 10) 9626 | -8/Garrison | Installed Relay Interface Framework 9645 | -8/Garrison | Entered Materials 9684 | -8/Materials | Identified exit to Garrison 9697 | -8/Materials | Entered Garrison 9781 | -8/Garrison | Triggered checkpoint 9835 | -8/Garrison | Discovered new exit (range 85) 9835 | -8/Garrison | Discovered new exit (range 81) 9835 | -8/Garrison | Discovered new exit (range 58) 9835 | -8/Garrison | Discovered new exit (range 84) 9883 | -8/Garrison | Garrison Relay disabled 10074 | -8/Garrison | Triggered checkpoint 10074 | -8/Garrison | Triggered checkpoint 10207 | -8/Garrison | Triggered checkpoint 10372 | -8/Garrison | Expanded RIF knowledge: Command Fork 10431 | -8/Garrison | Triggered checkpoint 10453 | -8/Garrison | Garrison Relay disabled 10504 | -8/Garrison | Entered Factory 10504 | -7/Factory | Evolved 2 slots: Propulsion x1, Utility x1 10506 | -7/Factory | FarCom data flow suspended 10810 | -7/Factory | Build established: Gunner 12159 | -7/Factory | Discovered new exit (range 16) 12739 | -7/Factory | Identified exit to Garrison 12781 | -7/Factory | Garrison activated, responded to threat 13304 | -7/Factory | First assault squad dispatched 13465 | -7/Factory | Entered Garrison 13513 | -7/Garrison | Triggered checkpoint 13619 | -7/Garrison | Garrison Relay disabled 13636 | -7/Garrison | Garrison Relay disabled 13665 | -7/Garrison | Discovered new exit (range 40) 13665 | -7/Garrison | Discovered new exit (range 94) 13665 | -7/Garrison | Discovered new exit (range 62) 14029 | -7/Garrison | Expanded RIF knowledge: Autooverride 14177 | -7/Garrison | Triggered checkpoint 14181 | -7/Garrison | Triggered checkpoint 14417 | -7/Garrison | Entered Factory 15094 | -7/Factory | Identified exit to Garrison 15094 | -7/Factory | Entered Garrison 15184 | -7/Garrison | Triggered checkpoint 15245 | -7/Garrison | Garrison Relay disabled 15451 | -7/Garrison | Crushed by falling debris 15451 | -7/Garrison | System corruption reached 10% 15522 | -7/Garrison | Lost 10 parts (5n3u2w) 16044 | -7/Garrison | Heavy support dispatched to Factory 16171 | -7/Garrison | Build established: Bothacker-Gunner 16576 | -7/Garrison | Lost 3 allies 16578 | -7/Garrison | Triggered checkpoint 16712 | -7/Garrison | Discovered new exit (range 14) 16770 | -7/Garrison | Garrison Relay disabled 16794 | -7/Garrison | Triggered checkpoint 16815 | -7/Garrison | Expanded RIF knowledge: Threat Obfuscation 16900 | -7/Garrison | Entered Factory 16900 | -6/Factory | Evolved 2 slots: Propulsion x2 17240 | -6/Factory | Repaired Gauss Cannon 17687 | -6/Factory | Garrison activated, responded to threat 18182 | -6/Factory | Identified exit to Factory 18802 | -6/Factory | DAS Turret deployed 18822 | -6/Factory | Build established: Gunner 19172 | -6/Factory | Discovered new exit (range 14) 19224 | -6/Factory | Discovered new exit (range 9) 19700 | -6/Factory | First assault squad dispatched 20168 | -6/Factory | Entered Lower Caves 20168 | -6/Lower Caves | Accompanied by 1 ally 20436 | -6/Lower Caves | Spotted B-75 Beast 20557 | -6/Lower Caves | System corruption reached 10% 20576 | -6/Lower Caves | Destroyed B-75 Beast 20596 | -6/Lower Caves | Lost 5 parts (1p3n1w) 20844 | -6/Lower Caves | Learned Factory interactive machine intel 21051 | -6/Lower Caves | Attracted the attention of an 0b10 checkpoint 21393 | -6/Lower Caves | Discovered new exit (range 12) 21815 | -6/Lower Caves | Entered another Lower Caves area 21815 | -6/Lower Caves | Accompanied by 1 ally 22216 | -6/Lower Caves | Encountered a Warlord checkpoint 22651 | -6/Lower Caves | Found Alien Artifact 22651 | -6/Lower Caves | Identified Core Expander 22651 | -6/Lower Caves | Installed Core Expander, added new Weapon slot 22741 | -6/Lower Caves | Learned 4 Factory zone layouts 23128 | -6/Lower Caves | Spotted YU-E47(f) 23128 | -6/Lower Caves | Spotted LR-B7E(f) 23129 | -6/Lower Caves | Encountered a Master Thief 23129 | -6/Lower Caves | Encountered a Master Thief 23132 | -6/Lower Caves | Spotted HW-3F2(f) 23132 | -6/Lower Caves | Spotted GM-JIH(f) 23133 | -6/Lower Caves | Encountered a Master Thief 23133 | -6/Lower Caves | Encountered a Master Thief 23133 | -6/Lower Caves | DAS Turret deployed 23133 | -6/Lower Caves | Destroyed YU-E47(f) 23133 | -6/Lower Caves | Spotted HE-KR3(f) 23134 | -6/Lower Caves | Encountered a Master Thief 23134 | -6/Lower Caves | Allies destroyed LR-B7E(f) 23135 | -6/Lower Caves | Deploy-a-Sentry stolen by Master Thief 23136 | -6/Lower Caves | AWS/Thermal stolen by Master Thief 23136 | -6/Lower Caves | Allies destroyed HW-3F2(f) 23140 | -6/Lower Caves | Allies destroyed GM-JIH(f) 23141 | -6/Lower Caves | Imp. Kinecellerator stolen by Master Thief 23142 | -6/Lower Caves | Destroyed HE-KR3(f) 23273 | -6/Lower Caves | Discovered new exit (range 7) 23401 | -6/Lower Caves | Entered Data Miner 23401 | -6/Data Miner | Accompanied by 1 ally 23404 | -6/Data Miner | Discovered new exit (range 6) 23424 | -6/Data Miner | Met Data Miner 23471 | -6/Data Miner | Learned location of Section 7 (-3) 23471 | -6/Data Miner | Acquired the access code to Warlord's prototype stash 23498 | -6/Data Miner | Received God Mode back door access code from Data Miner 23721 | -6/Data Miner | Interfaced with the Data Conduit 23901 | -6/Data Miner | Entered Proximity Caves 23901 | -5/Proximity Caves | Accompanied by 1 ally 24441 | -5/Proximity Caves | Learned Factory trap positions 24493 | -5/Proximity Caves | AWS/Thermal suddenly broke down 24552 | -5/Proximity Caves | Entered a huge 0b10 base via the front door 24558 | -5/Proximity Caves | Spotted B-75 Beast 24575 | -5/Proximity Caves | DAS Turret deployed 24582 | -5/Proximity Caves | Allies destroyed B-75 Beast 24606 | -5/Proximity Caves | Lost 3 parts (1p1n1w) 24877 | -5/Proximity Caves | Derelicts attacked a huge 0b10 base 25088 | -5/Proximity Caves | Discovered exit to Factory (range 21) 25200 | -5/Proximity Caves | AWS/Thermal suddenly broke down 25580 | -5/Proximity Caves | Build established: Commander-Gunner 25646 | -5/Proximity Caves | Lost 4 allies 25863 | -5/Proximity Caves | Attracted the attention of an 0b10 checkpoint 26177 | -5/Proximity Caves | Build established: Scavenger-Gunner 26374 | -5/Proximity Caves | Entered Factory 26374 | -5/Factory | Accompanied by 4 allies 26374 | -5/Factory | Evolved 2 slots: Utility x2 26376 | -5/Factory | Loaded intel: 103 trap records 26377 | -5/Factory | Loaded intel: 289 machine locations 26378 | -5/Factory | Loaded intel: 54 interactive machine locations 26751 | -5/Factory | Fabricated Biometal Heavy Treads (x1) 26856 | -5/Factory | Lost 4 allies 27156 | -5/Factory | Build established: Scavenger-Skirmisher 27199 | -5/Factory | Identified exit to Extension 27304 | -5/Factory | Entered Extension 27305 | -5/Extension | Loaded intel: 29 machine locations 27446 | -5/Extension | Spotted B-75 Beast 27481 | -5/Extension | Destroyed B-75 Beast 27607 | -5/Extension | Build established: Scavenger-Gunner 27817 | -5/Extension | Rescued a captive Derelict 28004 | -5/Extension | Disrupted transfer network 28086 | -5/Extension | AWS/Thermal suddenly broke down 28121 | -5/Extension | Spotted B-75 Beast 28143 | -5/Extension | Identified exit to Factory 28165 | -5/Extension | Destroyed B-75 Beast 28186 | -5/Extension | Lost 3 parts (1n2w) 28449 | -5/Extension | Rescued A7 28482 | -5/Extension | Rescued a captive Derelict 28591 | -5/Extension | Rescued a captive Derelict 28650 | -5/Extension | Rescued a captive Derelict 28650 | -5/Extension | Rescued a captive Derelict 28711 | -5/Extension | Discovered exit to Factory (range 10) 28712 | -5/Extension | Discovered new exit (range 6) 28755 | -5/Extension | Entered Cetus 28755 | -5/Cetus | Accompanied by 9 allies (A7) 28756 | -5/Cetus | Loaded intel: 24 machine locations 28760 | -5/Cetus | Acquired a Cetus Manufacturing Module code from A7 28780 | -5/Cetus | Spotted Cetus Guard 28780 | -5/Cetus | Spotted Cetus Guard 28782 | -5/Cetus | Spotted Cetus Guard 28786 | -5/Cetus | Spotted Cetus Guard 28786 | -5/Cetus | Allies destroyed Cetus Guard 28789 | -5/Cetus | Allies destroyed Cetus Guard 28792 | -5/Cetus | Allies destroyed Cetus Guard 28797 | -5/Cetus | Allies destroyed Cetus Guard 28918 | -5/Cetus | Escorted A7 to Cetus Mainframe 28937 | -5/Cetus | Started Cetus Manufacturing Module 28962 | -5/Cetus | Manufactured an Enhanced Grunt 28987 | -5/Cetus | Manufactured an Enhanced Grunt 29012 | -5/Cetus | Manufactured an Enhanced Grunt 29037 | -5/Cetus | Manufactured an Enhanced Grunt 29062 | -5/Cetus | Manufactured an Enhanced Grunt 29063 | -5/Cetus | Discovered new exit (range 22) 29103 | -5/Cetus | Spotted Cetus Guard 29103 | -5/Cetus | Spotted Cetus Guard 29106 | -5/Cetus | Spotted Cetus Guard 29109 | -5/Cetus | Allies destroyed Cetus Guard 29112 | -5/Cetus | Spotted Cetus Guard 29119 | -5/Cetus | Allies destroyed Cetus Guard 29125 | -5/Cetus | Allies destroyed Cetus Guard 29148 | -5/Cetus | System corruption reached 10% 29151 | -5/Cetus | Met Revision 17 29192 | -5/Cetus | System corruption reached 30% 29292 | -5/Cetus | Entered Archives 29292 | -5/Archives | Accompanied by 9 allies (A7) 29293 | -5/Archives | Loaded intel: 8 machine locations 29297 | -5/Archives | Received a hacking code to weaken MAIN.C 29430 | -5/Archives | Identified exit to Hub_04(d) 29467 | -5/Archives | Unable to access archive contents 29735 | -5/Archives | Discovered exit to Hub_04(d) (range 14) 30006 | -5/Archives | Entered Hub_04(d) 30006 | -5/Hub_04(d) | Accompanied by 7 allies 30006 | -5/Hub_04(d) | Discovered exit to Factory (range 10) 30007 | -5/Hub_04(d) | Loaded intel: 115 machine locations 30196 | -5/Hub_04(d) | Discovered exit to Factory (range 8) 30618 | -5/Hub_04(d) | Discovered exit to Factory (range 21) 30731 | -5/Hub_04(d) | Disrupted transfer network 30732 | -5/Hub_04(d) | Intercept squad dispatched 30747 | -5/Hub_04(d) | Spotted Tracker 30757 | -5/Hub_04(d) | Allies destroyed Tracker 30791 | -5/Hub_04(d) | Spotted Combat Programmer 30794 | -5/Hub_04(d) | Allies destroyed Combat Programmer 30906 | -5/Hub_04(d) | First assault squad dispatched 30986 | -5/Hub_04(d) | Spotted B-75 Beast 31009 | -5/Hub_04(d) | Destroyed B-75 Beast 31026 | -5/Hub_04(d) | Lost 3 allies 31314 | -5/Hub_04(d) | Network Hub disabled 31329 | -5/Hub_04(d) | Network Hub disabled 31374 | -5/Hub_04(d) | Spotted Lightning 31407 | -5/Hub_04(d) | Network Hub disabled 31408 | -5/Hub_04(d) | Spotted Lightning 31408 | -5/Hub_04(d) | Spotted Lightning 31418 | -5/Hub_04(d) | Spotted Lightning 31423 | -5/Hub_04(d) | Spotted Lightning 31428 | -5/Hub_04(d) | Network Hub disabled 31428 | -5/Hub_04(d) | Spotted Lightning 31428 | -5/Hub_04(d) | Spotted Lightning 31451 | -5/Hub_04(d) | Entered Factory 31451 | -4/Factory | Evolved 2 slots: Power x1, Utility x1 31452 | -4/Factory | Loaded intel: 257 machine locations 31474 | -4/Factory | Lost 3 parts (3w) 31923 | -4/Factory | Fabricated Adv. Shield Generator? 32264 | -4/Factory | Identified exit to Research 32328 | -4/Factory | Lost 3 parts (1p2w) 32451 | -4/Factory | First assault squad dispatched 32578 | -4/Factory | Intercept squad dispatched 32587 | -4/Factory | Destroyed 7 combat bots 32606 | -4/Factory | Spotted Tracker 32607 | -4/Factory | Spotted Tracker 32613 | -4/Factory | Spotted Combat Programmer 32638 | -4/Factory | Spotted Combat Programmer 32654 | -4/Factory | Core integrity fell below 50% 32661 | -4/Factory | System corruption reached 10% 32664 | -4/Factory | Core integrity fell below 20% 32667 | -4/Factory | Destroyed by Tracker with Immobilizer Last Messages --------------- 32658_ Penetrated by EMDS Slug. 32659_ Critical hit (Burn: +50). 32659_ EMDS Slug penetrates Wall. 32660_ Adv. Weight Redist. System destroyed. 32660_ Dropped Imp. Thermal Defense Suite. 32661_ The unstable cave ceiling collapses. 32661_ Penetrated by EMDS Slug. 32661_ Tiamat Missile Launcher destroyed. 32661_ Penetrated by EMDS Slug. 32661_ Centrium Heavy Treads destroyed. 32662_ K-01 Serf collects debris. 32662_ R-10 Processor collects Wheel. 32662_ G-67 Veteran destroyed. 32663_ Penetrated by EMDS Slug. 32663_ Penetrated by Slug. 32663_ Slug penetrates Wall. 32665_ The unstable cave ceiling collapses. 32666_ Penetrated by EMDS Slug. 32667_ Imp. Plasma Cutter destroyed. [Achievement: Back For More] Map ----- +----------------------------------------------------+ | # #???????????????????????????????? | | # """ """ #???????????????????????????????? | | ! # """ """ #???????????????????????????????? | | !! + """ """ +???????????????????????????????? | | !! # #????????????????????????"""?"""? | | # """ """ #????????????? ??????????"""?"""? | | "" # """ """ #???????????? ??????????"""?"""? | | """ # """ """?????????????? ?????????????????? | | S" # ??????????+??? ?????????????????? | | """ # """ """?????????????? """""????????????? | | """ # """ """??????????????? """""????????????? | | # """ """??????????????? """???????""?""??? | | ##### ??????????????? ???????""S""??? | | #???# ??????????????? """""?????""""???? | | ##### ???????????????? """""????????????? | | "" "" ??????????????? """??????????????? | | "F?"" ??????????????? %"???????????????? | | """"" ?????????????###+####????????????? | | ??? ????????????# ?????????????? | | ???? ????????????# % *#?##??????????? | | ##### ###+##+##??????????# !%## #??????????? | | # # #????#/##### %# #####??????? | | # #" ###??? = #??????? | | # #" = " #???????## %!=# # ######### | | # #" ############!!!%= !== = ## | | # #T """"## @ # !==*%! | ## | | # #" """"# #!! %=#%/! | | # #" """"# sg %/== % | | # #" """" sp [#% | | # # """"## %# ! | | # # """"# =# # | | # " # # # | | # ######### # | | # #?????#### # | | +"### #?????# # | | #### #?????# " # + ## | | #?????# "" ## ## ## # # # # # | | #?????# "" #####^^^^^# ! ## | | #?????# "" #???# p # !! ## | | #?????# "" #???# # ! ## | | #?????# #???# p# ] #? | | ###########?????# "" #???# # #? | | ????????????????# """ #???# + % #? | | ????????????????# """ #???# !%# % #? | | ????????????????# "" #???# =# #? | | ????????????????#! "" #???# # #? | | """""?""""?????## #???# # #? | | ????"??"??????## ===#???# # #? | | ????"?????????### ===#???# #! #? | | ??"""?????????# # == #?### ####+####+####? | +----------------------------------------------------+ Best States ------------- Heat Dissipation 70 Energy Generation 45 Energy Capacity 600 Matter Stores 300 Matter Capacity 300 Sight Range 22 Robot Scan Range 16 Terrain Scan Density 10 Additional Mass Support 9 EM Shielding 3 Armor Coverage 825 Resistance: TH 25 Resistance: EX 50 Phase Shifting 10 Evasion (%) 50 Targeting Accuracy 8 Target Analysis 6 Core Analysis 6 Armor Integrity Analysis 40 Recoil Reduction 6 Kinecelleration 40 Salvage Targeting 3 Offensive Hacking 10 Relay Coupler Types 1 Relay Coupler Value 24 Item Schematics ----------------- Plasma Cutter | -9/Materials | Scanalyzed Enh. Autogun | -7/Factory | Scanalyzed Cooling System | -7/Factory | Scanalyzed Adv. System Shield | -7/Factory | Scanalyzed Trap Scanner | -7/Factory | Scanalyzed Adv. Shield Generator | -7/Factory | Scanalyzed Imp. Remote Datajack | -7/Factory | Scanalyzed Combat Drone Bay | -6/Data Miner | Free Lgt. Regenerative Plating | -6/Data Miner | Free Enh. Armored Leg | -6/Data Miner | Free Prc. Matter Filter | -6/Data Miner | Free Cld. Plasma Rifle | -6/Data Miner | Free Imp. Heavy Treads | -6/Data Miner | Free Lrn. Sensor Array | -6/Data Miner | Free Phase Gun | -6/Data Miner | Free Imp. Thermal Shield | -6/Data Miner | Free Imp. Fusion Compressor | -6/Data Miner | Free Hvy. Siege Treads | -6/Data Miner | Free Particle Reactor | -6/Data Miner | Free Lyr. Heavy Armor Plating | -4/Factory | Scanalyzed Robot Schematics ------------------ G-50 Soldier | -6/Data Miner | Free C-35 Carver | -6/Data Miner | Free Y-54 Guardian | -6/Data Miner | Free M-22 Extractor | -6/Data Miner | Free A-15 Conveyor | -6/Data Miner | Free L-61 Swordsman | -6/Data Miner | Free E-15 Imp | -6/Data Miner | Free Fabricated ------------ Biometal Heavy Treads | x1 | -5/Factory | Preloaded Adv. Shield Generator | x2 | -4/Factory Alien Tech Used ----------------- Core Expander Achievements -------------- 404 Back For More Challenges ------------ None Game ------ Seed NullHellfireMatter Manual? 0 Play Time 04:47:37 Cumulative 90.5 hours Start 2024.09.14 @ 05:52:29 End 2024.09.15 @ 03:57:21 Sessions 3 Manual Loads 0 Difficulty Rogue Special Mode None Game No. 50 Rogue 50 Adventurer 0 Explorer 0 Win Type - Total 0 Types 0/0/0/0/0/0/0/0/0 Lore% 45 Gallery% 61 Achievement% 51 Wizard Run 0 Options --------- Layout 0 ASCII 0 Keyboard 0 Movement Mouse Keybinds 0 Fullscreen 1 Font 24/Smallcaps Map View 183x50 Zoom Use 0% Tactical HUD 1 Map Filters NONE Filters NONE Steam 0 RUN: f3231813-f5b6-481e-8061-66dae0c2aa2e